bitfinex/quotes_SOLUSD_20260102
["timestamp","ask_amount","ask_price","bid_price","bid_amount"]
[1767362883125,2.58848132,128.52,128.49,0.6312073]
[1767362884028,2.58848132,128.52,128.49,0.60154023]
[1767362887813,0.40619841,128.52,128.49,0.60154023]
[1767362888013,2.58848132,128.52,128.49,0.60154023]
[1767362891933,0.46619841,128.51,128.49,0.60154023]
[1767362892140,2.64848132,128.51,128.49,0.60154023]
[1767362892512,2.18228291,128.51,128.49,0.60154023]
[1767362894636,3.40510142,128.51,128.49,0.60154023]
[1767362895336,0.46619841,128.52,128.49,0.60154023]
[1767362895514,3.40510142,128.51,128.49,0.60154023]
[1767362897419,3.87129983,128.51,128.49,0.60154023]
[1767362897634,3.40510142,128.51,128.49,0.60154023]
[1767362899412,3.40510142,128.51,128.47,14.22]
[1767362899736,3.87129983,128.51,128.48,0.66154023]
[1767362899935,0.46619841,128.51,128.48,0.66154023]
[1767362903434,0.46619841,128.53,128.49,0.66154023]
[1767362903741,0.46619841,128.52,128.49,0.66154023]
[1767362906936,3.87129983,128.54,128.49,11.18768278]
[1767362907133,3.40510142,128.56,128.51,0.66633847]
[1767362907339,27.36619841,128.57,128.54,0.66633847]
[1767362907636,30.77129983,128.57,128.54,0.66633847]
[1767362908758,3.87129983,128.57,128.54,0.66633847]
[1767362910427,0.46619841,128.57,128.54,0.66633847]
[1767362910630,3.87129983,128.57,128.54,0.66633847]
[1767362911346,3.40510142,128.56,128.54,0.66633847]
[1767362914339,0.46619841,128.54,128.49,0.66633847]
[1767362914641,3.40510142,128.52,128.49,0.66633847]
[1767362915740,27.22252468,128.57,128.49,0.66633847]
[1767362915954,0.46619841,128.57,128.54,0.66633847]
[1767362916138,3.87129983,128.57,128.54,0.66633847]
[1767362917156,0.46619841,128.59,128.54,0.66633847]
[1767362917326,3.87129983,128.58,128.54,0.66633847]
[1767362917844,3.87129983,128.57,128.54,0.66633847]
[1767362918743,0.46619841,128.57,128.54,0.66633847]
[1767362918937,3.87129983,128.57,128.54,0.66633847]
[1767362919624,0.46619841,128.57,128.54,0.66633847]
[1767362919826,3.87129983,128.57,128.54,0.66633847]
[1767362920945,0.46619841,128.57,128.54,0.66633847]
[1767362921144,3.87129983,128.57,128.54,0.66633847]
[1767362927448,3.40510142,128.56,128.53,14.2]
[1767362927649,3.87129983,128.55,128.53,14.2]
[1767362928049,3.87129983,128.55,128.52,0.66633847]
[1767362928251,3.40510142,128.55,128.52,0.66633847]
[1767362929155,3.40510142,128.55,128.53,0.66633847]
[1767362930062,3.87129983,128.55,128.53,0.66633847]
[1767362933364,3.87129983,128.55,128.52,14.2]
[1767362933750,3.87129983,128.55,128.52,14.86633847]
[1767362933947,3.87129983,128.53,128.49,0.66633847]
[1767362934152,3.40510142,128.52,128.5,0.66633847]
[1767362937674,3.37510142,128.52,128.5,0.66633847]
[1767362938799,3.40510142,128.51,128.49,14.90337245]
[1767362939150,3.40510142,128.51,128.49,0.70337245]
[1767362939551,3.40510142,128.5,128.49,0.70337245]
[1767362939769,3.40510142,128.5,128.48,0.70337245]
[1767362940470,3.40510142,128.49,128.48,0.70337245]
[1767362940655,3.40510142,128.5,128.48,0.70337245]
[1767362941466,3.87129983,128.51,128.48,0.70337245]
[1767362947484,3.87129983,128.5,128.47,14.90337245]
[1767362947692,3.87129983,128.49,128.46,0.70337245]
[1767362948061,3.40510142,128.49,128.46,0.70337245]
[1767362952262,3.87129983,128.47,128.44,0.70337245]
[1767362952775,3.40510142,128.46,128.44,0.70337245]
[1767362954469,2.64711656,128.47,128.44,0.70337245]
[1767362962093,0.46619841,128.47,128.44,0.70337245]
[1767362962394,2.64711656,128.47,128.44,0.70337245]
[1767362964184,2.64711656,128.46,128.43,0.70337245]
[1767362970672,0.46619841,128.46,128.43,0.70337245]
[1767362970874,2.64711656,128.46,128.43,0.70337245]
[1767362973099,2.64711656,128.46,128.42,30.0604275]
[1767362973602,0.46619841,128.46,128.42,30.0604275]
[1767362973905,2.64711656,128.46,128.42,30.0604275]
[1767362974813,0.46619841,128.46,128.42,30.0604275]
[1767362974995,0.46619841,128.46,128.43,0.71858771]
[1767362976707,2.64711656,128.46,128.43,0.71858771]
[1767362979511,2.88901901,128.46,128.43,0.71858771]
[1767362980303,0.70810086,128.45,128.42,22.00691843]
[1767362980486,0.70810086,128.45,128.42,22.72550614]
[1767362980901,2.88901901,128.44,128.41,0.71858771]
[1767362981102,7.78402556,128.47,128.41,0.71858771]
[1767362981103,2.88901901,128.43,128.41,0.71858771]
[1767362981288,0.70810086,128.43,128.41,0.71858771]
[1767362982098,0.70810086,128.43,128.4,8.50643045]
[1767362982392,2.88901901,128.43,128.4,8.50643045]
[1767362982604,2.88901901,128.43,128.4,0.71858771]
[1767362982782,0.70810086,128.43,128.4,0.71858771]
[1767362982988,2.88901901,128.43,128.4,0.71858771]
[1767362986610,0.70810086,128.42,128.4,0.71858771]
[1767362986812,2.88901901,128.43,128.4,0.71858771]
[1767362987613,2.88901901,128.43,128.4,0.21858771]
[1767362987813,0.70810086,128.43,128.4,0.21858771]
[1767362989117,2.88901901,128.43,128.4,0.21858771]
[1767362995921,0.70810086,128.43,128.4,0.21858771]
[1767362996123,2.88901901,128.43,128.4,0.21858771]
[1767363000428,2.90062955,128.42,128.39,14.8890719]
[1767363000725,0.7197114,128.39,128.37,20.3096547]
[1767363000928,2.90062955,128.39,128.37,20.3096547]
[1767363001313,2.90062955,128.41,128.38,0.6690719]
[1767363001509,0.7197114,128.4,128.38,0.6690719]
[1767363001714,2.90062955,128.4,128.38,0.6690719]
[1767363002529,2.90062955,128.41,128.38,0.6690719]
[1767363003231,2.18091815,128.41,128.39,0.6690719]
[1767363003528,2.90062955,128.42,128.39,0.6690719]
[1767363003907,2.18091815,128.41,128.39,0.6690719]
[1767363004106,2.90062955,128.42,128.39,0.6690719]
[1767363005405,2.18091815,128.41,128.39,0.6690719]
[1767363005606,2.15091815,128.41,128.39,0.6690719]
[1767363007927,2.18091815,128.4,128.39,0.6690719]
[1767363011835,2.18091815,128.4,128.37,27.43025323]
[1767363013135,0.7197114,128.41,128.37,27.43025323]
[1767363013314,2.18091815,128.4,128.37,27.43025323]
[1767363013739,1e-08,128.39,128.38,0.56135724]
[1767363014533,0.71971141,128.39,128.36,14.22]
[1767363014739,2.18091815,128.38,128.36,14.22]
[1767363016240,2.18091815,128.37,128.35,0.2]
[1767363016426,2.18091815,128.36,128.35,0.2]
[1767363016623,3.41287817,128.36,128.35,0.2]
[1767363016925,4.13258957,128.37,128.33,16.34232056]
[1767363017124,3.41287817,128.36,128.33,16.34232056]
[1767363020035,3.38287817,128.36,128.33,16.34232056]
[1767363021141,3.41287817,128.35,128.33,16.34232056]
[1767363022116,3.41287817,128.35,128.33,8.55013837]
[1767363022530,3.41287817,128.34,128.33,0.2]
[1767363022732,3.41287817,128.34,128.32,30.06392195]
[1767363023531,3.41287817,128.34,128.31,16.14357057]
[1767363026128,4.13258957,128.35,128.31,16.14357057]
[1767363027444,3.41287817,128.34,128.31,16.14357057]
[1767363027643,4.13258957,128.35,128.31,16.14357057]
[1767363031848,4.07897599,128.34,128.31,16.14357057]
[1767363032056,4.07897599,128.34,128.3,7.99391916]
[1767363032555,0.66609782,128.34,128.31,7.79337852]
[1767363032751,4.07897599,128.34,128.31,7.79337852]
[1767363035443,0.66609782,128.34,128.31,7.79337852]
[1767363041561,0.66609782,128.35,128.31,11.20625669]
[1767363043061,4.07897599,128.36,128.31,11.20625669]
[1767363043370,3.41287817,128.36,128.31,11.20625669]
[1767363043546,0.66609782,128.35,128.31,7.79337852]
[1767363043841,0.66609782,128.35,128.31,11.20625669]
[1767363045062,0.66609782,128.35,128.31,7.79337852]
[1767363045264,0.66609782,128.35,128.31,11.20625669]
[1767363046765,0.66609782,128.33,128.3,8.77336939]
[1767363046945,0.66609782,128.33,128.3,12.18624756]
[1767363047346,0.66609782,128.34,128.3,12.18624756]
[1767363049569,0.66609782,128.33,128.3,8.77336939]
[1767363050673,0.66609782,128.33,128.3,12.18624756]
[1767363050873,0.66609782,128.33,128.3,8.77336939]
[1767363051057,0.66609782,128.33,128.3,12.18624756]
[1767363051778,0.66609782,128.33,128.3,0.97942322]
[1767363052073,0.66609782,128.34,128.3,3.61287817]
[1767363053068,0.66609782,128.34,128.3,11.40700182]
[1767363054669,0.66609782,128.33,128.3,0.2]
[1767363054975,0.66609782,128.32,128.3,0.2]
[1767363057279,3.41287817,128.33,128.3,0.2]
[1767363057573,0.67222421,128.32,128.3,0.2]
[1767363058274,4.08510238,128.33,128.3,0.2]
[1767363058650,0.67222421,128.32,128.3,0.2]
[1767363059275,7.79088908,128.36,128.3,0.2]
[1767363059573,0.67222421,128.32,128.3,0.2]
[1767363061180,0.67222421,128.36,128.3,7.99408584]
[1767363061383,0.67222421,128.34,128.3,11.40696401]
[1767363062577,0.67222421,128.34,128.3,7.99408584]
[1767363062760,0.67222421,128.34,128.3,11.40696401]
[1767363062960,0.67222421,128.34,128.3,30.89254468]
[1767363063367,0.67222421,128.34,128.31,3.41287817]
[1767363063768,0.67222421,128.34,128.3,30.89254468]
[1767363066677,0.67222421,128.34,128.3,27.47966651]
[1767363066878,0.67222421,128.34,128.3,30.89254468]
[1767363070972,0.67222421,128.34,128.3,27.47966651]
[1767363072086,3.41287817,128.34,128.3,27.47966651]
[1767363072285,0.67222421,128.33,128.3,27.47966651]
[1767363078574,0.67222421,128.33,128.3,29.66460428]
[1767363079996,0.67222421,128.35,128.31,2.18493777]
[1767363082079,0.67222421,128.35,128.3,27.47966651]
[1767363082278,0.67222421,128.32,128.3,7.99408584]
[1767363082478,0.67222421,128.32,128.3,0.2]
[1767363085795,0.67222421,128.3,128.29,0.2]
[1767363086171,0.72279461,128.29,128.28,0.2]
[1767363086988,2.18493777,128.29,128.27,0.2]
[1767363087184,0.72279461,128.28,128.27,0.2]
[1767363087379,0.72279461,128.27,128.25,0.2]
[1767363088079,0.72279461,128.27,128.25,7.99719673]
[1767363088279,0.72279461,128.27,128.25,8.66715602]
[1767363088980,2.90773238,128.28,128.25,8.66715602]
[1767363089180,2.87773238,128.28,128.25,8.66715602]
[1767363095202,0.72279461,128.25,128.24,0.1]
[1767363095502,2.90773238,128.25,128.23,0.1]
[1767363098502,0.72279461,128.25,128.23,0.1]
[1767363098702,0.72279461,128.24,128.23,0.1]
[1767363099107,0.72279461,128.23,128.22,0.1]
[1767363099701,2.90773238,128.23,128.2,0.66995929]
[1767363099876,2.18493777,128.23,128.2,7.80019676]
[1767363100076,2.18493777,128.23,128.21,0.66995929]
[1767363100696,2.80773238,128.24,128.21,0.66995929]
[1767363100892,2.18493777,128.23,128.21,0.66995929]
[1767363101099,2.80773238,128.24,128.21,0.66995929]
[1767363102183,2.80773238,128.23,128.19,16.82076237]
[1767363102887,2.80773238,128.23,128.2,0.66995929]
[1767363104198,2.80773238,128.22,128.19,8.35013837]
[1767363104508,2.80773238,128.22,128.19,16.82095853]
[1767363104708,2.18493777,128.2,128.18,0.76995929]
[1767363105011,2.80773238,128.21,128.18,8.5714805]
[1767363106013,0.62279461,128.21,128.18,8.5714805]
[1767363106516,2.80773238,128.21,128.18,8.5714805]
[1767363107198,0.62279461,128.21,128.18,8.5714805]
[1767363107404,2.80773238,128.21,128.18,8.5714805]
[1767363107988,2.77773238,128.21,128.18,8.5714805]
[1767363108187,0.59279461,128.21,128.18,8.5714805]
[1767363108707,0.59279461,128.21,128.16,0.78027465]
[1767363108906,2.18493777,128.18,128.15,8.47297177]
[1767363109128,2.18493777,128.19,128.15,8.47297177]
[1767363109882,2.67773238,128.2,128.16,0.66995929]
[1767363110100,2.18493777,128.23,128.18,2.18493777]
[1767363110406,0.49279461,128.22,128.19,0.66995929]
[1767363110610,2.67773238,128.22,128.19,0.66995929]
[1767363111112,54.9902334,128.3,128.17,0.66995929]
[1767363111113,0.49279461,128.21,128.17,0.66995929]
[1767363111297,2.67773238,128.21,128.17,0.66995929]
[1767363111814,2.18493777,128.2,128.17,0.66995929]
[1767363112218,2.67773238,128.2,128.16,22.71242566]
[1767363112914,2.18493777,128.19,128.16,8.47242566]
[1767363114013,2.18493777,128.18,128.14,0.66995929]
[1767363114220,0.49279461,128.16,128.12,0.66995929]
[1767363114515,2.18493777,128.18,128.14,0.66995929]
[1767363114719,2.18493777,128.19,128.15,0.66995929]
[1767363115020,0.49279461,128.19,128.15,14.90995929]
[1767363115193,2.67773238,128.19,128.15,14.90995929]
[1767363116291,2.18493777,128.18,128.15,14.90995929]
[1767363117439,2.18493777,128.17,128.15,14.90995929]
[1767363117598,0.49279461,128.18,128.15,14.24]
[1767363117917,2.18493777,128.16,128.13,8.35013837]
[1767363118116,2.67773238,128.16,128.13,22.59013837]
[1767363118325,2.67773238,128.16,128.13,23.2781991]
[1767363118523,2.67773238,128.16,128.13,9.0381991]
[1767363118731,2.67773238,128.16,128.12,22.73317742]
[1767363118898,0.49279461,128.16,128.13,0.68806073]
[1767363119098,2.67773238,128.16,128.13,0.68806073]
[1767363120120,2.67773238,128.16,128.12,14.92806073]
[1767363120304,2.18493777,128.15,128.12,14.92806073]
[1767363121802,2.18493777,128.16,128.12,22.73312723]
[1767363122005,2.18493777,128.16,128.12,14.92806073]
[1767363122226,2.18493777,128.16,128.13,0.68806073]
[1767363124797,0.46279461,128.17,128.13,0.68806073]
[1767363125001,2.18493777,128.16,128.09,0.78070106]
[1767363125198,2.18493777,128.11,128.08,0.68806073]
[1767363125816,2.18493777,128.11,128.08,8.49566072]
[1767363127228,2.18493777,128.09,128.08,8.35013837]
[1767363127403,2.18493777,128.1,128.08,8.35013837]
[1767363127605,7.80335544,128.15,128.08,8.35013837]
[1767363127606,27.31281365,128.15,128.08,8.35013837]
[1767363127806,2.18493777,128.1,128.08,8.35013837]
[1767363128308,7.80471961,128.13,128.08,8.35013837]
[1767363128509,2.18493777,128.1,128.08,8.35013837]
[1767363128828,2.18493777,128.11,128.08,9.0381991]
[1767363129506,2.18493777,128.1,128.08,8.35013837]
[1767363129709,2.18493777,128.1,128.07,9.1381991]
[1767363130427,2.18493777,128.09,128.07,0.1]
[1767363131220,2.18493777,128.1,128.07,0.1]
[1767363131712,2.18493777,128.08,128.07,0.1]
[1767363132226,2.18493777,128.09,128.07,0.1]
[1767363133607,7.80604744,128.11,128.07,0.1]
[1767363133947,2.18493777,128.09,128.07,0.1]
[1767363134130,7.80544337,128.12,128.07,0.1]
[1767363134331,7.80396441,128.14,128.08,2.8729985]
[1767363134516,2.18493777,128.12,128.08,0.68806073]
[1767363134919,2.18493777,128.11,128.08,0.68806073]
[1767363136036,7.80396441,128.14,128.08,0.68806073]
[1767363136334,2.18493777,128.12,128.08,0.68806073]
[1767363136829,27.31221294,128.15,128.08,0.68806073]
[1767363137022,27.31221294,128.15,128.08,8.4956301]
[1767363137334,2.18493777,128.12,128.08,10.68056787]
[1767363138610,3.42613584,128.12,128.08,11.92176594]
[1767363138828,3.42613584,128.12,128.08,0.68806073]
[1767363139333,3.42613584,128.1,128.07,0.1]
[1767363139713,3.42613584,128.1,128.07,0.78806073]
[1767363140412,3.42613584,128.09,128.07,0.1]
[1767363141471,3.42613584,128.08,128.05,19.78074734]
[1767363141638,3.42613584,128.07,128.05,19.78074734]
[1767363141839,41.58076916,128.11,128.05,19.78074734]
[1767363142017,3.42613584,128.08,128.05,19.78074734]
[1767363143940,3.42613584,128.09,128.05,27.59002821]
[1767363144137,3.42613584,128.09,128.06,0.68806073]
[1767363144337,14.26,128.11,128.06,0.68806073]
[1767363144832,3.42613584,128.1,128.06,0.68806073]
[1767363145345,3.42613584,128.09,128.06,0.68806073]
[1767363146046,22.06530871,128.12,128.06,0.68806073]
[1767363146243,3.42613584,128.09,128.06,0.68806073]
[1767363147530,3.42613584,128.09,128.06,0.70717412]
[1767363147741,14.26,128.08,128.05,19.78074734]
[1767363147939,3.42613584,128.06,128.03,0.70717412]
[1767363148347,3.39613584,128.06,128.03,0.70717412]
[1767363148719,14.26,128.08,128.03,0.70717412]
[1767363148919,3.42613584,128.06,128.03,0.70717412]
[1767363149423,14.26,128.08,128.04,0.70717412]
[1767363149933,3.42613584,128.06,128.04,0.70717412]
[1767363150645,14.26,128.08,128.04,0.70717412]
[1767363150951,3.42613584,128.06,128.04,0.70717412]
[1767363151145,3.39613584,128.06,128.04,0.70717412]
[1767363151328,3.42613584,128.07,128.04,0.70717412]
[1767363152352,3.42613584,128.06,128.03,0.70717412]
[1767363154535,3.42613584,128.05,128.03,0.70717412]
[1767363155043,22.06765077,128.08,128.03,0.70717412]
[1767363155342,3.42613584,128.05,128.03,0.70717412]
[1767363155858,7.8072521,128.09,128.03,11.23670702]
[1767363156031,3.42613584,128.07,128.04,0.70717412]
[1767363156224,3.42613584,128.08,128.05,0.70717412]
[1767363156424,3.42613584,128.09,128.05,0.70717412]
[1767363157039,14.26,128.1,128.05,0.70717412]
[1767363157350,3.42613584,128.09,128.05,0.70717412]
[1767363157559,3.42613584,128.09,128.06,0.70717412]
[1767363158346,3.42613584,128.07,128.03,0.70717412]
[1767363158550,25.49280595,128.1,128.03,0.70717412]
[1767363158551,3.42613584,128.06,128.03,0.70717412]
[1767363158844,3.42613584,128.06,128.04,0.70717412]
[1767363159352,3.42613584,128.07,128.04,0.70717412]
[1767363160047,3.42613584,128.06,128.04,0.70717412]
[1767363161151,3.42613584,128.05,128.04,0.70717412]
[1767363161737,22.06765723,128.08,128.04,0.70717412]
[1767363161939,3.42613584,128.05,128.02,0.70717412]
[1767363162237,3.42613584,128.04,128.02,0.70717412]
[1767363163141,3.42613584,128.04,127.99,7.81294817]
[1767363163347,3.42613584,128.03,128.0,0.70717412]
[1767363163754,14.26,128.06,128.01,0.70717412]
[1767363163972,3.42613584,128.05,128.02,0.70717412]
[1767363164550,14.26,128.06,128.02,0.70717412]
[1767363164957,3.42613584,128.05,128.02,0.70717412]
[1767363165150,3.42613584,128.06,128.02,0.70717412]
[1767363165457,7.80841447,128.07,127.99,8.35013837]
[1767363165644,3.42613584,128.0,127.97,0.70717412]
[1767363165844,14.26,128.03,127.98,0.70717412]
[1767363166045,3.42613584,128.0,127.98,0.70717412]
[1767363166252,3.42613584,128.01,127.98,8.52085631]
[1767363166473,3.42613584,128.01,127.99,0.70717412]
[1767363167959,3.42613584,128.0,127.96,8.35013837]
[1767363168163,3.42613584,127.98,127.96,0.70717412]
[1767363168340,41.59784744,128.03,127.96,0.70717412]
[1767363168536,3.42613584,127.99,127.96,0.70717412]
[1767363168742,3.42613584,127.99,127.97,0.70717412]
[1767363168936,22.07117401,128.03,127.97,0.70717412]
[1767363168937,3.42613584,128.0,127.97,0.70717412]
[1767363169743,14.26,128.01,127.97,0.70717412]
[1767363169954,3.42613584,128.0,127.97,0.70717412]
[1767363170254,3.42613584,127.99,127.97,0.70717412]
[1767363170461,14.26,128.01,127.97,0.70717412]
[1767363170667,3.42613584,127.99,127.97,0.70717412]
[1767363170866,3.42613584,127.98,127.96,9.05731249]
[1767363171056,3.42613584,127.97,127.94,0.70717412]
[1767363171368,3.42613584,127.97,127.9,8.62532313]
[1767363171369,3.42613584,127.95,127.9,8.62532313]
[1767363171539,3.42613584,127.98,127.91,0.70717412]
[1767363171540,3.42613584,127.93,127.91,0.70717412]
[1767363171744,3.42613584,127.98,127.94,0.70717412]
[1767363171745,14.26,127.97,127.94,0.70717412]
[1767363172144,0.65304484,127.99,127.94,0.70717412]
[1767363172339,19.52450465,128.05,127.94,0.70717412]
[1767363172540,3.42613584,128.0,127.95,0.70717412]
[1767363172777,0.65304484,128.02,127.96,0.70717412]
[1767363173068,9.18648932,128.01,127.96,0.78149421]
[1767363173269,3.42613584,128.01,127.97,0.70717412]
[1767363173977,0.65304484,128.02,127.97,8.52145752]
[1767363174166,3.42613584,128.01,127.97,8.52145752]
[1767363175077,0.65304484,128.02,127.97,8.52145752]
[1767363175302,3.42613584,128.01,127.98,0.70717412]
[1767363176477,3.42613584,128.0,127.98,0.70717412]
[1767363176662,3.42613584,127.99,127.97,8.48228531]
[1767363176862,3.42613584,127.99,127.97,0.66800191]
[1767363177182,3.42613584,128.0,127.97,0.66800191]
[1767363177799,0.69480062,128.01,127.97,0.66800191]
[1767363177984,3.42613584,128.0,127.97,8.48229824]
[1767363178866,3.42613584,128.0,127.97,0.66800191]
[1767363179385,0.69480062,128.02,127.97,7.81432413]
[1767363179560,3.42613584,128.0,127.98,0.66800191]
[1767363179761,0.69480062,128.02,127.98,0.66800191]
[1767363179984,3.42613584,128.01,127.98,0.66800191]
[1767363180582,3.42613584,128.01,127.99,0.66800191]
[1767363181286,3.42613584,128.02,127.99,0.66800191]
[1767363181892,3.42613584,128.03,127.99,0.66800191]
[1767363182072,14.26,128.04,127.99,0.66800191]
[1767363182388,3.42613584,128.05,128.01,0.66800191]
[1767363182562,0.69480062,128.06,128.01,8.47964316]
[1767363182762,0.69480062,128.06,128.02,0.66800191]
[1767363182986,4.12093646,128.06,128.02,0.66800191]
[1767363183184,0.69480062,128.09,128.01,7.81164125]
[1767363183486,3.42613584,128.08,128.04,0.66800191]
[1767363185084,3.42613584,128.07,128.04,0.66800191]
[1767363185599,4.12093646,128.05,128.01,0.66800191]
[1767363185787,3.42613584,128.03,128.01,0.66800191]
[1767363187073,0.69480062,128.04,128.01,0.66800191]
[1767363187273,3.42613584,128.03,128.01,0.66800191]
[1767363187992,3.42613584,128.02,127.99,0.66800191]
[1767363188374,3.42613584,128.03,127.99,0.66800191]
[1767363189589,4.12093646,128.02,127.98,7.81342693]
[1767363189891,0.69480062,128.04,127.99,0.66800191]
[1767363190072,3.42613584,128.01,127.97,30.42439135]
[1767363190267,3.42613584,128.02,127.98,0.66800191]
[1767363191074,0.69480062,128.03,127.98,0.66800191]
[1767363191276,3.42613584,128.01,127.98,8.48169015]
[1767363191474,3.42613584,128.02,127.98,7.81368824]
[1767363191683,3.42613584,128.02,127.99,0.66800191]
[1767363191996,4.12093646,128.03,127.99,0.66800191]
[1767363192493,0.69480062,128.02,127.99,0.66800191]
[1767363193778,4.12093646,128.03,127.99,4.09413775]
[1767363194003,3.42613584,128.05,128.02,0.66800191]
[1767363194273,4.12093646,128.06,128.02,0.66800191]
[1767363194795,0.69480062,128.06,128.02,0.66800191]
[1767363195009,4.12093646,128.06,128.02,0.66800191]
[1767363195167,4.12093646,128.04,128.0,3.42613584]
[1767363195596,4.12093646,128.04,128.0,4.09413775]
[1767363195790,4.12093646,128.04,128.0,0.66800191]
[1767363196180,0.69480062,128.04,128.01,3.42613584]
[1767363196695,0.69480062,128.04,127.99,7.8129837]
[1767363196894,0.69480062,128.04,128.01,3.42613584]
[1767363197084,3.42613584,128.06,128.01,3.42613584]
[1767363197402,4.12093646,128.06,128.02,3.42613584]
[1767363197694,3.42613584,128.06,128.0,7.81226855]
[1767363197902,0.69480062,128.05,128.02,3.42613584]
[1767363198106,0.69480062,128.05,128.01,7.81185421]
[1767363198309,0.69480062,128.05,128.02,4.09413775]
[1767363198489,0.69480062,128.05,128.02,0.66800191]
[1767363198686,0.69480062,128.05,128.02,4.09413775]
[1767363198886,0.69480062,128.05,128.02,0.66800191]
[1767363199302,0.69480062,128.05,128.0,7.81202338]
[1767363199502,0.69480062,128.05,127.99,4.09413775]
[1767363199689,4.12093646,128.05,127.99,7.81271847]
[1767363199892,3.42613584,128.05,128.0,0.66800191]
[1767363200206,0.69480062,128.04,128.0,0.66800191]
[1767363200396,4.12093646,128.04,128.0,0.66800191]
[1767363200595,2.89026693,128.04,128.0,2.86346822]
[1767363200805,0.69480062,128.04,128.0,2.86346822]
[1767363201197,2.89026693,128.04,128.0,0.66800191]
[1767363201393,0.69480062,128.03,127.98,7.81315898]
[1767363201598,0.69480062,128.03,127.99,2.19546631]
[1767363201790,0.69480062,128.03,127.97,7.81383861]
[1767363202184,0.69480062,128.03,127.99,2.19546631]
[1767363202707,10.70039865,128.04,127.98,7.8135484]
[1767363203100,10.70039865,128.04,127.99,2.19546631]
[1767363203408,14.95480062,128.06,128.01,2.86346822]
[1767363203628,6.47002177,128.05,128.01,2.83442671]
[1767363203906,0.69480062,128.05,128.01,2.83442671]
[1767363204484,2.19546631,128.07,128.02,2.19546631]
[1767363204683,0.69480062,128.06,128.02,2.19546631]
[1767363205187,0.69480062,128.07,127.99,7.81294617]
[1767363205401,2.89026693,128.07,128.03,2.19546631]
[1767363205604,0.69480062,128.07,128.02,0.66800191]
[1767363205788,0.69480062,128.06,128.03,2.19546631]
[1767363206805,0.69480062,128.06,128.03,2.88896375]
[1767363206982,0.6580866,128.07,128.03,2.88896375]
[1767363207186,0.6580866,128.07,128.04,2.19546631]
[1767363207384,14.26,128.08,128.05,2.19546631]
[1767363207723,0.6580866,128.09,128.05,2.88896375]
[1767363208807,0.6580866,128.09,128.06,2.19546631]
[1767363209034,0.6580866,128.08,128.02,8.59223643]
[1767363209206,0.6580866,128.08,128.04,2.19546631]
[1767363209590,0.6580866,128.06,128.02,0.78112794]
[1767363209803,0.6580866,128.06,128.02,2.19546631]
[1767363209997,0.6580866,128.06,128.03,2.19546631]
[1767363210204,0.6580866,128.07,128.04,2.19546631]
[1767363210495,0.6580866,128.07,128.01,7.81177723]
[1767363210706,0.6580866,128.07,128.04,2.19546631]
[1767363211614,0.6580866,128.07,128.03,0.69349744]
[1767363211794,0.6580866,128.07,128.04,2.19546631]
[1767363212912,0.6580866,128.07,128.04,2.88896375]
[1767363213116,0.6580866,128.07,128.04,0.69349744]
[1767363213412,2.85355291,128.07,128.03,2.19546631]
[1767363213610,2.85355291,128.07,128.03,0.69349744]
[1767363213812,2.85355291,128.07,128.03,2.88896375]
[1767363214012,0.6580866,128.07,128.03,0.69349744]
[1767363214190,2.85355291,128.07,128.03,2.88896375]
[1767363214391,0.6580866,128.07,128.03,2.88896375]
[1767363214616,2.85355291,128.07,128.03,2.88896375]
[1767363215003,0.6580866,128.07,128.04,2.19546631]
[1767363215505,0.6580866,128.07,128.03,0.69349744]
[1767363215712,0.6580866,128.07,128.04,2.19546631]
[1767363216114,0.6580866,128.07,128.04,2.88896375]
[1767363217009,0.6580866,128.07,128.04,0.69349744]
[1767363217205,0.6580866,128.07,128.04,2.88896375]
[1767363218022,0.6580866,128.07,128.04,0.69349744]
[1767363218397,0.6580866,128.07,128.04,2.88896375]
[1767363219997,22.06704827,128.09,128.04,2.88896375]
[1767363220201,0.6580866,128.09,128.06,2.19546631]
[1767363220405,2.85355291,128.09,128.03,0.69349744]
[1767363220607,2.85355291,128.07,128.03,2.88896375]
[1767363220805,2.85355291,128.07,128.03,0.69349744]
[1767363221016,2.85355291,128.07,128.03,2.88896375]
[1767363221328,2.85355291,128.07,128.04,0.69349744]
[1767363223331,0.6580866,128.07,128.04,0.69349744]
[1767363225009,2.19546631,128.08,128.04,2.19546631]
[1767363225209,5.78629113,128.07,128.04,2.88896375]
[1767363225524,0.6580866,128.08,128.04,2.88896375]
[1767363225717,5.78644743,128.07,128.04,2.88896375]
[1767363225917,10.66118813,128.08,128.04,2.88896375]
[1767363226114,5.78644608,128.07,128.04,2.88896375]
[1767363226433,0.6580866,128.07,128.04,0.69349744]
[1767363232448,2.85355291,128.07,128.04,0.69349744]
[1767363232620,2.19546631,128.07,128.03,2.19546631]
[1767363232943,2.85355291,128.04,128.0,0.69349744]
[1767363234138,2.85355291,128.05,128.01,0.69349744]
[1767363236041,0.6580866,128.05,128.02,0.70238842]
[1767363236230,0.70396851,128.05,128.02,0.70238842]
[1767363237442,0.70396851,128.04,128.0,2.89785473]
[1767363238028,0.70396851,128.04,128.0,10.71034455]
[1767363238343,0.70396851,128.04,128.01,0.70238842]